{"text_format":"1","workbook":"xlsx","n_sheets":7,"sheets":["QUIZ","Notice","Aide","Théories","Data","Portrait","Texte"],"not_rendered":{"charts":0,"images":106,"macros":1,"external_links":1,"defined_names":6,"comments":0,"pivot_tables":0},"unopened":[],"bounds":{"document_bytes":16777216,"sheet_cells":100000,"rows_first":2000,"rows_last":500,"rows_between":2000,"halvings":0,"cell_chars":16384,"cell_head_chars":4096},"cells_cut":0,"cells_raw":0,"read":"whole","date_system":"1900"}

{"sheet":"QUIZ","index":0,"n_rows":17,"n_cols":16,"rows_kept":17,"cut":false,"hidden":false,"merged":[[16,3,16,5],[0,4,2,4],[0,5,1,5],[2,5,2,8],[3,17,3,18],[4,17,6,18]]}
[" ",null,null,null,null,{"$f":"IF(K1=K2,\"C\",\"\")","v":""},{"$f":"\"zoom \"&O3","v":"zoom 128"},"+",null,"Tirage",42,"nb :",40,"couleur :",{"$f":"VLOOKUP(QUIZ!K1,Data!A1:G40,7)","v":"J"}]
[null,null,null,null,null,null,null,"-",null,"Réponse",{"$f":"IF(L6=TRUE,L2-1,VLOOKUP(L2-1,Data!A101:C141,3))","v":0},1,null,"Indice ->",2,"Image mné"]
[null,null,{"$f":"IF(K1=42,\"\",VLOOKUP($K$1,Data!$A$1:$F$42,4))","v":""},"     Je suis …",null,{"$f":"IF(K1=43,\"parti…!!!\",(IF(K1=K2,VLOOKUP(K1,Data!A2:B41,2),\"   ?\")))","v":"   ?"},null,null,null,"Indices",false,false,false,"zoom",128,false]
[null,{"$f":"IF(K1>40,\"\",IF(M2=\"Voir\",\"C\",IF(K1=K2,\"P\",\":\")))","v":""},null,null,null,null,null,null,null,null,null,null,null,null,{"$f":"VLOOKUP(K1,Data!A1:J44,8)","v":"                                                                                                                                                                           J'ai dit …"}]
[null,null,{"$f":"IF(K3=TRUE,VLOOKUP($K$1,Data!$A$2:$F$42,3),\"\")","v":""},null,null,null,null,null,null,null,null,null,null,null,null,{"$f":"IF(P3=TRUE,K1,50)","v":50}]
[null,null,{"$f":"IF(L3=TRUE,VLOOKUP($K$1,Data!$A$2:$F$42,5),\"\")","v":""},null,null,null,null,null,null,"Liste chronol.",1,{"$f":"IF(K6=1,TRUE,FALSE)","v":true},null,"Rech.",{"$f":"VLOOKUP(L2-1,Data!A101:C141,3)","v":0}]
[null,null,{"$f":"IF(M3=TRUE,VLOOKUP($K$1,Data!$A$2:$F$42,6),\"\")","v":""}]
["   Liste :",null,{"$f":"IF(K6=1,\"Economistes par ordre chronologique   ---> \",\" Economistes par ordre alphabétique   ---> \")","v":"Economistes par ordre chronologique   ---> "}]
[]
[0,"questions",{"$f":"IF(A10<1,\"\",REPT(\"n\",A10))","v":""}]
[0,"réponses",{"$f":"IF(A11<1,\"\",REPT(\"n\",A11))","v":""},null,null,null,null,null,null,"R>Q",null,{"$f":"IF(A11>A10,A11-A10,0)","v":0}]
[0,"justes",{"$f":"IF(A12<1,\"\",REPT(\"n\",A12))","v":""},null,null,null,null,null,null,"Scores  =",null,{"$f":"A10-A12+L11","v":0}]
[]
["© Yvan Péguiron 2026 - www.infodidac.ch"]
[]
[]
[null,null,null,"Pour annuler la première réponse"]

{"sheet":"Notice","index":1,"n_rows":0,"n_cols":0,"rows_kept":0,"cut":false,"hidden":false,"merged":[]}

{"sheet":"Aide","index":2,"n_rows":281,"n_cols":2,"rows_kept":281,"cut":false,"hidden":false,"merged":[]}
[]
[]
[]
[]
[]
[]
[]
[]
[]
[]
[]
[]
[]
[]
[]
[]
[]
[]
[]
[]
[]
[]
[]
[]
[]
[]
[]
[]
[]
[]
[]
[]
[]
[]
[]
[]
[]
[]
[]
[]
[]
[]
[]
[]
[]
[]
[]
[]
[]
[]
[]
[]
[]
[]
[]
[]
[]
[]
[]
[]
[]
[]
[]
[]
[]
[]
[]
[]
[]
[]
[]
[]
[]
[]
[]
[]
[]
[]
[]
[]
[]
[]
[]
[]
[]
[]
[]
[]
[]
[]
[]
[]
[]
[]
[]
[]
[]
[]
[]
[]
[]
[]
[]
[]
[]
[]
[]
[]
[]
[]
[]
[]
[]
[]
[]
[]
[]
[]
[]
["https://www.citeco.fr/histoire-pensee-economique/index.php"]
[]
[]
[]
[]
[]
[]
[]
[]
[]
[]
[]
[]
[]
[]
[]
[]
[]
[]
[]
[]
[]
[]
[]
[]
[]
[]
[]
[]
[]
[]
[]
[]
[]
[]
[]
[]
[]
[]
[]
[]
[]
[]
[]
[]
[]
[]
[]
[]
[]
[]
[]
[]
[]
[]
[]
[]
[]
[]
[]
[]
[]
[]
[]
[]
[]
[]
[]
[]
[]
[]
[]
[]
[]
[]
[]
[]
[]
[]
[]
[]
[]
[]
[]
[]
[]
[]
[]
[]
[]
[]
[]
[]
[]
[]
[]
[]
[]
[]
[]
[]
[]
[]
[]
[]
[]
[]
[]
[]
[]
[]
[]
[]
[]
[]
[]
[]
[]
[]
[]
[]
[]
[]
[]
[]
[]
[]
[]
[]
[]
[]
[]
[]
[]
[]
[]
[]
[]
[]
[]
[]
[]
[]
[]
[]
[]
[]
[]
[]
[]
[]
[]
[]
[]
[]
[]
[]
[]
[]
[]
[null,"vidéos sur Youtube"]
[null,"https://drawmyeconomy.com/"]

{"sheet":"Théories","index":3,"n_rows":246,"n_cols":10,"rows_kept":246,"cut":false,"hidden":false,"merged":[[2,9,3,11]]}
[null,null,"Auteur","Nom de la théorie","Résumé",null,false,false]
["1519 Londres - 1579",null,"Gresham Thomas","Loi de la mauvaise monnaie","Lorsque deux monnaies ont la même valeur légale mais des valeurs réelles différentes, les agents thésaurisent (gardent) la monnaie de valeur supérieure et dépensent la moins bonne, entraînant la disparition de la première. "]
["1619 Reims - 1683 Paris",null,"Colbert Jean-Baptiste","Le mercantilisme","Doctrine économique dominante en Europe du XVIe au XVIIe siècle, liant la puissance d'un État à l'accumulation de métaux précieux (or, argent). Elle prône un fort protectionnisme, favorisant les exportations et limitant les importations pour dégager un excédent commercial, souvent avec une intervention étatique rigoureuse. Le développement d’un pays ne peut passer qu’à travers l’enrichissement par le biais du commerce extérieur.",null,null,null,null,"Trouver le nom de la théorie et l'auteur ou inversément !"]
["1694 Méré - Versailles 1774 ",null,"Quesney François","Le Tableau économique","Publié pour la première fois en 1758 ce tableau est considéré comme le premier modèle de circuit macroéconomique de l'histoire. L'auteur, inspiré par ses connaissances de médecin sur la circulation sanguine, y décrit la circulation des richesses entre les différentes composantes de la société."]
["1723 Écosse - Édimbourg 1790",null,"Smith Adam","La main invisible","Métaphore suggérant que des individus poursuivant leur propre intérêt personnel contribuent, sans le vouloir, à l'intérêt général et à l'efficacité économique. Ce mécanisme suppose que le marché autorégulé et concurrentiel alloue les ressources de manière optimale sans intervention étatique forte. "]
["1760 Paris - Paris 1854",null,"de Saint-Simon Henri","Parabole des abeilles et des frelons","Ce texte dénonce une organisation sociale archaïque où ceux qui travaillent et créent la richesse sont subordonnés à ceux qui ne produisent rien. Question provocatrice : quelles pertes seraient les plus dommageables pour la France ? La perte des « 3000 producteurs » savants, artistes, artisans, banquiers et agriculteurs  (les « abeilles ») ou la perte des « 30'000 oisifs » famille royale, grands officiers de la ouronne, ministres, conseillers d'État et membres du haut clergé (les « frelons »)"]
["1766 Surrey - Claverton, 1834",null,"Malthus Thomas Robert","Loi de la population","Cette loi soutient que la population croît plus vite (progression géométrique : 1, 2, 4, 8...) que les ressources alimentaires (progression arithmétique : 1, 2, 3, 4...). Ce déséquilibre inévitable mène à des catastrophes (famines, guerres, maladies) régulant la population."]
["1767 Lyon  - Paris 1832",null,"Say Jean-Baptiste","Loi des débouchés","Cette loi libérale se résume ainsi : toute offre débouche par créer sa propre demande. En pratique une entreprise qui met un bien sur le marché donne l’équivalent de sa valeur à ses salariés sous forme de salaires et à ses propriétaires sous forme de dividendes. On vend un produit, non pas pour récupérer de la monnaie, mais pour pouvoir en acheter un autre. « Les produits s’échangent contre des produits », la monnaie « n’est qu’un voile »."]
["1772 Londres - Gloucestershire, 1823",null,"Ricardo David","Les avantages comparatifs","Théorie qui explique que, dans un contexte de libre-échange, chaque pays a intérêt à se spécialiser dans la production pour laquelle il dispose de l'écart de productivité (ou du coût) le plus fort en sa faveur, ou le plus faible en sa défaveur, comparativement à ses partenaires."]
["1773 Genève  - id. 1842",null,"de Sismondi Jean-Léonard","Loi  du machinisme","Thèse qui soutient que l'introduction des machines dans le processus de production et la recherche du profit mènent à des crises de surproduction. Si elle augmente la productivité, elle rend une partie des ouvriers inutiles, entraînant licenciements et baisse des salaires. La loi des débouchés est ainsi contestée, arguant que la baisse des salaires réduit la demande globale, rendant la consommation insuffisante par rapport à la capacité de production. "]
["1801 Bayonne - Rome 1850",null,"Bastiat Frédéric","Pétition des marchands de chandelles","L'auteur utilisait l'humour et la satire pour rendre l'économie accessible. Il demandait ironiquement de bloquer le soleil pour favoriser l'industrie de l'éclairage. Cette satire visait à démontrer l'absurdité du protectionnisme et des tarifs douaniers, qui privilégient les producteurs nationaux au détriment des consommateurs, en montrant que protéger une industrie contre une concurrence plus efficace (ici le soleil) détruit de la richesse plutôt qu'elle n'en crée."]
["1806 Londres - Avignon 1873",null,"Mill John Stuart","L'utilitarisme","Théorie éthique postulant qu'une action est moralement bonne si elle maximise le bonheur général (plaisir et absence de douleur) pour le plus grand nombre. L'économiste, connu aussi pour son paradoxe de l'induction, hiérarchise les plaisirs, privilégiant les facultés intellectuelles et morales (supérieures) aux satisfactions corporelles (inférieures). Il prône l'altruisme et considère le sacrifice de soi comme la vertu suprême s'il augmente le bonheur collectif."]
["1818 Trèves - Londres 1883",null,"Marx Karl","Loi de la valeur-travail","Cette loi stipule que la valeur d'une marchandise correspond au \"temps de travail socialement nécessaire\" à sa production. La théorie affirmant que le capitaliste s'approprie une partie de la valeur créée par l'ouvrier au-delà du coût de sa force de travail. "]
["1834 Évreux - Clarens, Suisse, 1910",null,"Walras Léon","Utilité marginale (Walras, Pareto, Marshall)","Locution qui désigne le bon usage qu'un agent économique tire de la consommation d'une quantité supplémentaire d'un bien. Le raisonnement est dit à la marge parce que la formule consiste à mesurer l'utilité par unité supplémentaire consommée. Un besoin décroît marginalement. Un individu assoiffé tirera une grande utilité marginale de son premier verre d'eau, un peu moins du deuxième, et encore moins du troisième, etc. L'expression est utilisée par au moins trois économistes célèbres."]
["1842 Londres - Cambridge 1924",null,"Marshall Alfred","Loi de l'offre et de la demande","Le prix d'un bien se fixe à l'intersection de l'offre (producteurs) et de la demande (consommateurs), formant un prix d'équilibre. En synthétisant utilité marginale et coût de production, les courbes ressemblent à des « lames de ciseaux ». Cette loi est le pilier de la microéconomie."]
["1848 Paris - Céligny, Suisse 1923",null,"Pareto Vilfredo","Optimum de Pareto","L’ensemble des états possibles de la société est divisé en deux. On peut ainsi distinguer : - Ceux qui sont améliorables : il est possible d'augmenter le bien-être de certains individus sans réduire celui des autres  - Ceux qui ne sont pas améliorables : l'augmentation du bien-être de certains individus implique la réduction du bien-être d'au moins un autre individu. Situation optimum dans laquelle tous les acteurs seraient dans une meilleure position."]
["1874 Lausanne - Versailles 1955",null,"Rist Charles","Théorie de la monnaie-marchandise","Cette théorie soutient que la monnaie est fondamentalement une marchandise, idéalement adossée à l'or (étalon-or), garantissant sa valeur et la stabilité des prix. L'or n'est pas une monnaie parfaite, c'est la moins mauvaise parce que l'or bénéficie d'une forte aura en raison de sa beauté, de sa rareté et de sa durabilité. Par ailleurs, en fixant l'émission monétaire sur l'or, on empêche le gouvernement d'utiliser la monnaie à ses fins propres."]
["1883 Cambridge - Sussex, 1946",null,"Keynes John Maynard","Théorie générale de l'emploi,…","Cette doctrine révolutionne la pensée économique en affirmant que le marché ne s'autorégule pas toujours. Pour réduire le chômage, l'État doit intervenir (politiques budgétaires et monétaires) pour soutenir la demande effective notamment par des travaux publics. Il doit aussi stimuler l'investissement par des taux d'intérêt bas, surtout en période de crise. En période de surchauffe, il faut réduire les dépenses.C'est là la condition de l'équilibre politique et social."]
["1883 Moravie - Taconic,Connecticut 1950",null,"Schumpeter Joseph","Destruction créatrice","Concept économique popularisé dans les années 1940, décrivant comment l'innovation technologique remplace constamment les anciennes structures de production par de nouvelles. Ce processus essentiel au capitalisme entraîne la disparition d'entreprises et d'emplois obsolètes, tout en générant de nouvelles activités et opportunités, dopant ainsi la croissance à long terme. "]
["1892 Vitchouga - Oblast de Moscou 1938 ",null,"Kondratiev Nikolaï","Théorie des cycles économiques","L'existence de crises économiques plus dures et plus longues que d'autres a fait évoquer un possible cycle long de l'économie, c'est-à-dire de mécanismes répétitifs reproduisant les mêmes effets. Crises, prospérité, crises, etc. Malheureusement, les prévisions dérivées de ces idées seront démenties par la réalité."]
["1899 Vienne - Frigourg-en-Brisgau 1992",null,"von Hayek Friedrich","La Route de la servitude","Cette thèse soutient que toute forme de planification économique centralisée (qu'elle soit socialiste ou fasciste) mène inévitablement au totalitarisme.  L'État doit imposer des choix collectifs qui écrasent les préférences individuelles, nécessitant une coercition croissante. L'État doit se contente de garantir un cadre juridique stable (l'État de droit) pour permettre au marché de fonctionner librement."]
["1904 Warwick - Brockley 1989",null,"Hicks John","Formule \"IS/LM\"","Graphique montrant comment l'épargne et l'investissement (Investments and Savings) courbe IS décroissance, ainsi que l'offre de monnaie (Liquidity and Money) courbe LM croissante, réagissent au taux d'intérêt (axe y) et au niveau de production PIB (axe x). L'intersection détermine simultanément le revenu national et le taux d'intérêt. Le modèle permet d'analyser l'efficacité des politiques budgétaires."]
["1906 Munich - New-York 1999",null,"Leontief Wassily","Paradoxe de Leontief","Une contradiction économique émerge lorsqu'un pays fortement doté en capital financier exporte des biens qui ont un ratio capital/travail plus faible que ses importations, c'est-à-dire lorsqu'il exporte des biens intensifs en travail et non en capital. C’est contraire au modèle HOS. Les USA en 1947, pays riche en capital, exportaient des biens nécessitant plus de travail que de capital."]
["1908 Budapest - 1986 Cambridge",null,"Kaldor Nicholas","Le carré magique","Représentation graphique de la santé économique d'un pays. Ce graphique présente les quatre grands objectifs de la politique économique conjoncturelle d'un pays que sont : - la croissance - le plein emploi des facteurs de production - l'équilibre extérieur de la balance commerciale - la stabilité des prix. Il serait magique s'il était réalisable !"]
["1908 Iona Station, Ontario - Cambridge 2006",null,"Galbraith John Kenneth","Filière inversée","Phénomène de concurrence imparfaite. Elle désigne le renversement de la souveraineté du consommateur : ce ne sont plus les besoins des consommateurs qui dictent la production, mais les grandes entreprises qui, via le marketing et la technostructure, créent des besoins et imposent leurs produits."]
["1912 New York - San Francisco 2006",null,"Friedman Milton","Le monétarisme","École de pensée de l'école de Chicago qui attribue à la masse monétaire un rôle clé dans les fluctuations économiques et l'inflation. Elle prône la limitation de l'intervention de l'État et la maîtrise de la masse monétaire par les banques centrales. La croissance de la masse monétaire doit être constante et alignée sur celle de la production, plutôt que de tenter de réguler l'économie par des interventions discrétionnaires. Contrairement aux théories keynésiennes, ce courant estime que la politique budgétaire (dépenses publiques) est inefficace pour relancer l'économie. "]
["1915 Gary, Indiana - Massachusetts 2009",null,"Samuelson Paul Anthony","Modèle HOS (Hecksher - Ohlin - Samuelson","Déclinaison des avantages comparatifs de Ricardo. Selon le théorème de Hecksher, Ohlin et Samueslon, chaque pays doit se spécialiser dans la production et l'exportation du bien dont la production utilise de façon intensive le facteur qui est relativement plus abondant dans le pays. Il doit importer le bien dont la production est intensive dans le facteur relativement rare."]
["1918 Champaing, Illinois - New Haven 2002",null,"Tobin James","Taxe Tobin","Le but d'un impôt  sur les transactions de change (transactions monétaires internationales) était de trouver un moyen de gérer la volatilité des taux de change. Selon cet économiste les échanges de devises transmettent des perturbations dont la source provient des marchés financiers internationaux. Par extension, le terme désigne aujourd'hui une taxe sur les transactions financières."]
["1918 Champaing, Illinois - New Haven 2002",null,"Tobin James","La valeur \"Q\" ","Théorie sur des choix d'investissement. Cette théorie définit un ratio (Q= Valeur boursière de l’entreprise / Valeur de remplacement du capital fixe). Un Q supérieur à 1 signifie que l'entreprise en question a intérêt à augmenter son stock de capital fixe (donc à investir). Un Q inférieur à 1 pousse les actionnaires à une certaine défiance envers l'entreprise. "]
["1920 Omaha, Nebraska - Gladwyne 2013",null,"Klein Lawrence Robert ","Wharton Econometric Forecasting Model","Modèle de prévision économétrique  réalisé par la WEFA (Associés de prévision économétrique de Wharton). Il utilise des centaines d'équations pour quantifier les relations entre les grands agrégats économiques (consommation, investissement, dépenses publiques). Objectif : Faire des prévisions conjoncturelles et des simulations de politiques économiques (par exemple : \"quel serait l'impact d'une baisse des impôts de 1% sur le PIB ?\")."]
["1924 Saint-Denis, Réunion - Paris 2007",null,"Barre Raymond","Plan Barre","Plan de rigueur économique majeur adipté en 1976 visant à lutter contre l'inflation et la faible croissance. Il consiste à rétablir la balance des paiements et soutenir l'emploi après le choc pétrolier. Il a imposé un gel des prix, des hausses d'impôts et des cotisations sociales pour assainir l'économie."]
["1928 Bluefiel, Virginie - New Jersey 2015",null,"Nash John Forbes","Dilemme du prisonnier","Situation où chaque partie prévoit le choix des autres en cherchant à maximise son gain sans regret compte tenu de cette prévision.   /   Deux suspects sont interrogés. Ils ont deux choix : se taire ou dénoncer l'autre. Si les deux se taisent, ils écopent d'une peine légère (6 mois). Si l'un dénonce l'autre, le dénonciateur est libre et l'autre prend la peine maximale (10 ans). Si les deux se dénoncent, ils ont une peine intermédiaire (5 ans). Le paradoxe : Bien que se taire soit la meilleure option commune, la peur et l'intérêt personnel poussent à la trahison. "]
["1933 Santiniketan",null,"Sen Amartya","Les capabilités","Une « liberté substantielle » est la possibilité pour les individus de faire des choix parmi les biens qu’ils jugent estimables et de les atteindre effectivement. La possibilité de choisir divers « modes de fonctionnement », par exemple se nourrir, se déplacer, avoir une éducation. Appliquée à « l'économie du bien-être et du développement », cette approche par les « capabilités » a amené la création de l'Indice de développement humain (IDH)."]
["1937 Yakima, État de Washington",null,"Lucas Robert Emerson","Les anticipations rationnelles","Cette théorie pose pour principe la capacité des agents à anticiper et ajuster immédiatement leurs comportements aux conséquences des politiques économiques initiées par les États. Ces adaptations rendent vaines toutes les mesures étatiques."]
["1940 Chittagong, Bangladesh",null,"Yunus Muhammad","Économie des \"Trois Zéros\"","Le pionnier du microcrédit prône une nouvelle forme de capitalisme basée sur une économie à trois zéros : Zéro pauvreté en éradiquant l'extrême pauvreté en favorisant l'autonomisation des plus démunis. - Zéro chômage en transformant chaque individu en entrepreneur, postulant que l'être humain n'est pas né pour travailler pour autrui mais pour créer sa propre activité. - Zéro émission carbone en construisant une économie durable. Cette approche vise à résoudre les problèmes sociaux et environnementaux par l'entreprise sociale, plutôt que de se concentrer sur la maximisation du profit. "]
["1940 Youngstown, Ohio",null,"Laffer Arthur","Courbe Laffer","La courbe illustre l'idée que « trop d'impôt tue l'impôt ». Elle montre que si les taux d'imposition sont trop élevés, les recettes fiscales diminuent en décourageant le travail, l'investissement et en favorisant l'évasion fiscale. Elle suggère un niveau optimal de prélèvement, en dessous duquel baisser les impôts peut augmenter les recettes. À 0% d'impôt, les recettes sont nulles. À 100%, elles redeviennent nulles car personne n'a intérêt à produire. Au-delà du taux optimal  toute augmentation d'imposition diminue la base imposable et réduit les recettes de l'État"]
["1943 Gary",null,"Stiglitz Joseph","Salaire d'efficience","En économie du travail,  théorie expliquant la fixation d'un niveau de salaire supérieur à ce qu'expliquerait la seule loi de l'offre et la demande sur un marché du travail en concurrence pure et parfaite, expliquant ainsi une partie du chômage. L'idée de salaire efficace avance que la productivité d'un travailleur dépend du salaire qui lui est versé. "]
[]
[]
[]
[]
[]
[]
[]
[]
[]
[]
[]
[]
[]
[]
[]
[]
[]
[]
[]
[]
[]
[]
[]
[]
[]
[]
[]
[]
[]
[]
[]
[]
[]
[]
[]
[]
[]
[]
[]
[]
[]
[]
[]
[]
[]
[]
[]
[]
[]
[]
[]
[]
[]
[]
[]
[]
[]
[]
[]
[]
[]
[]
[]
[]
[]
[]
[]
[]
[]
[]
[]
[]
[]
[]
[]
[]
[]
[]
[]
[]
[]
[]
[]
[]
[]
[]
[]
[]
[]
[]
[]
[]
[]
[]
[]
[]
[]
[]
[]
[]
[]
[]
[]
[]
[]
[]
[]
[]
[]
[]
[]
[]
[]
[]
[]
[]
[]
[]
[]
[]
[]
[]
[]
[]
[]
[]
[]
[]
[]
[]
[]
[]
[]
[]
[]
[]
[]
[]
[]
[]
[]
[]
[]
[]
[]
[]
[]
[]
[]
[]
[]
[]
[]
[]
[]
[]
[]
[]
[]
[]
[]
[]
[]
[]
[]
[]
[]
[]
[]
[]
[]
[]
[]
[]
[]
[]
[]
[]
[]
[]
[]
[]
[]
[]
[]
[]
[]
[]
[]
[]
[]
[]
[]
[]
[]
[]
[]
[]
[]
[]
[]
[]
[]
[]
[]
[]
[]
[]
[null,null,null,null,null,null,false]

{"sheet":"Data","index":4,"n_rows":142,"n_cols":12,"rows_kept":142,"cut":false,"hidden":true,"merged":[]}
[0,"Nom :","Origine","Titre","Ecole","Ouvrages",null,"Citations",null,"   "]
[1,"Gresham Thomas","1519 Londres - 1579","Commerçant et banquier anglais - Spécialise monétaire","Mercantilisme","La Banque des Médicis - ","V","                                                          Lorsque ciruculent dans un pays deux monnaies dont l'une est considérée par le public comme bonne et l'autre mauvaise, la mauvaise chasse la bonne."]
[2,"Colbert Jean-Baptiste","1619 Reims - 1683 Paris","Contrôleur général des finances","Mercantilisme","Code Noir (1685)","R","                                                                    L'art de l'imposition consiste à plumer l'oie pour obtenir le plus possible de plumes avec  le moins possible de cris.",null,null,null,"https://www.youtube.com/watch?v=rnWRddz3Emg"]
[3,"Quesney François","1694 Méré - Versailles 1774 ","Chirurgien puis économiste français","Physiocratie","Tables Oeconomique (1758) - Physiocatie : droit natuel (1769)","V","                                           Pauvres paysans, pauvre royaume   -   Nul travail ne peut être effectué sans des avances préalables. L'enfant a reçu la nourriture de ses parents avant de la chercher.",null,null,null,"https://www.youtube.com/watch?v=tuJX_p80IwI"]
[4,"Smith Adam","1723 Écosse - Édimbourg 1790","Économiste britannique","Fondateur école classique","La Richesse des Nations (1776)","V","                                                                           Aucune société ne peut prospérer et être heureuse, dans laquelle la plus grande partie des membres est pauvre et misérable."]
[5,"de Saint-Simon Henri","1760 Paris - Paris 1854","Économiste et philosophe français","Utopistes","Le Politique (1819) - Catéchisme des industriels (1824)","R","                                                                                                        L'art de s'avancer et de parvenir, c'est l'art d'offrir sa main à qui l'on voudrait donner son pied."]
[6,"Malthus Thomas Robert","1766 Surrey - Claverton, 1834","Économiste britannique","Classique","Essai sur le principe de population (1798)","V","                                                                                                                               La difficulté n'est pas de faire des enfants, mais de les nourrir.",null,null,null,"https://www.youtube.com/watch?v=R3nKcujADTY"]
[7,"Say Jean-Baptiste","1767 Lyon  - Paris 1832","Économiste français","Classique","Cours complet d’économie politique pratique (1804)","V","                                                                                                                            On n’est jamais mieux gouverné que lorsqu’il n’y a pas de gouvernement. ",null,null,null,"https://www.youtube.com/watch?v=-Iq0pmS-SJA"]
[8,"Ricardo David","1772 Londres - Gloucestershire, 1823","Économiste britannique","Classique","Les principes de l’économie politique et de l’impôt (1817)","V","                                                   Ainsi que tout autre contrat, les salaires doivent être livrés à la concurrence franche et libre du marché, et n'être jamais entravés par l'intervention du Gouverneur.",null,null,null,"https://www.youtube.com/watch?v=XKGjVImBWog"]
[9,"de Sismondi Jean-Léonard","1773 Genève  - id. 1842","Historien et économiste suisse","Classique","Nouveaux Principes d'économie politique (1819)","R","                                                                      Ce n'est point le perfectionnement des machines qui est la vraie calamité ; c'est le partage injuste que nous faisons de leur produit."]
[10,"Bastiat Frédéric","1801 Bayonne - Rome 1850","Philosophe, magistrat et économistre français","Classique","Sophismes économiques (1845) - Harmonies économiques - Ce qu'on voit et ce qu'on ne voit pas (1850)","V","                                                                                                         L'Etat, c'est la grande fiction par laquelle tout le monde s'efforce de vivre aux dépens de tout le monde.",null,"  "]
[11,"Mill John Stuart","1806 Londres - Avignon 1873","Philosophe et économiste britannique","Utilitarisme - libéralisme","Principes d'économie politique (1848) - l’Utilitarisme (1851)","J","                                                                                      Les conservateurs ne sont pas forcément stupides, mais la plupart des gens stupides sont conservateurs. "]
[12,"Proudhon Pierre-Joseph","1809  Besançon - Paris 1865","Économiste et philosophe français","Utopistes","Qu'est-ce que la propriété (1840) - Contradictions économiques ou philosophie de la misère (1846)","J","                                                                                  Concurrence et profit : l'un est la guerre, l'autre le butin.  -   Il ne s'agit pas de tuer la liberté individuelle, mais de la socialiser.",null,null,null,"https://drawmyeconomy.com/pierre-joseph-proudhon-lenfant-terrible-du-socialisme-francais/"]
[13,"Marx Karl","1818 Trèves - Londres 1883","Philosophe, économiste et homme politique allemand","Marxisme","Le Capital (1864) - Manifeste du parti communiste (1848)","R","                                                                                   Les prolétaires n'ont rien à perdre que leurs chaînes. Ils ont un monde à gagner. Prolétaires de tous les pays, unissez-vous !",null,null,null,"https://drawmyeconomy.com/karl-marx-socialisme/"]
[14,"Walras Léon","1834 Évreux - Clarens, Suisse, 1910","Économiste français","Néoclassique - Ecole de Lausanne","Eléments de Politique économique pure ou Théorie de la Richesse sociale(1874)","J","                                                               Une chose est rare, dès qu’il n’y en a point dans le monde en quantité indéfinie, et qu’elle n’est offerte à la demande générale qu’en quantité limitée.",null,null,null,"https://www.youtube.com/watch?v=IU3gvjvpk6w"]
[15,"Marshall Alfred","1842 Londres - Cambridge 1924","Économiste britannique","Néoclassique - Ecole anglaise","Les Principes de l'économie politique","V","                                                                          La puissance productrice d’un pays peut s’accroître d’une façon plus que proportionnelle à l’augmentation du chiffre de sa population."]
[16,"Pareto Vilfredo","1848 Paris - Céligny, Suisse 1923","Économiste et sociologue italien","Néoclassique - Ecole de Lausanne","Manuel d'économie politique (1906) - Traité de sociologie générale (1916)","V","                                                Si on établit l'impôt sur le revenu, on commencera avec un taux progressif fort supportable, et puis, chaque année, à l'occasion du budget, on l'augmentera."]
[17,"Bernstein Eduard","1850 Schöneberg - Berlin 1932","Philosophe et homme politique allemand","Marxisme","Les Présupposés du socialisme (1899)","R","                                                       La lutte politique a la tendance d'aboutir au radicalisme plutôt qu'au socialisme et plutôt à la corruption des masses qu'à leur éducation morale."]
[18,"Rist Charles","1874 Lausanne - Versailles 1955","Économiste français","Néoclassique","Histoire des doctrines économiques (1909) - La déflation en pratique (1924)  - Défense de l'or (1953)","V","                                                    Une monnaie de papier est une créance sur un inconnu, sur un pays un gouvernement dont personne ne peut prévoir à l'avance les décisions arbitraires.",null,"Le budget est le squelette de l'État débarrassé de toute idéologie trompeuse."]
[19,"Keynes John Maynard","1883 Cambridge - Sussex, 1946","Économiste britannique","Inspirateur du keynésianisme","Théorie générale de l'emploi, de l'intérêt et de la monnaie (1936)","J","                                                                           L'économiste doit étudier le présent à la lumière du passé afin d'éclairer le futur.  -  À long terme nous serons tous morts",null,null,null,"https://www.youtube.com/watch?v=CMrfCAbHOgQ"]
[20,"Schumpeter Joseph","1883 Moravie - Taconic,Connecticut 1950","Économiste autrichien.","Néoclassique - Ecole autrichienne","Capitalisme, socialisme et démocratie (1942) - Histoire de l'analyse économique (1954) ","V","                        On ne peut devenir entrepreneur qu’en devenant auparavant débiteur. S’endetter appartient à l’essence de l’entreprise et n’a rien d’anormal. De l'audace, de l'audace, toujours de l'audace !"]
[21,"Monnet Jean","1888 Cognac - Yvelines, 1979 ","Administrateur et homme politique français","Libre échange","L'Europe et l'organisation de la paix (1964) - Les États-Unis d'Europe (1992.)","V","                                                                                                                                               Les hommes ne voient la nécessité que dans la crise."]
[22,"Kondratiev Nikolaï","1892 Vitchouga - Oblast de Moscou 1938 ","Economiste soviétique","Léninisme","Les vagues longues de la conjoncture (1935)","R","                                                                                                          La notion de torture réside déjà dans le simple fait de garder en prison des détenus politiques…",null,null,null,"https://drawmyeconomy.com/les-cycles-de-kondratiev/"]
[23,"von Hayek Friedrich","1899 Vienne - Frigourg-en-Brisgau 1992","Économiste et philosophe autrichien (Prix Nobel en 1974)","Ecole autrichienne","Prix et production (1931) - La Route de la servitude (1944)","V","                                                          La monnaie est la seule chose que la concurrence ne rendra pas peu cher, car son attrait réside précisément dans sa capacité à préserver sa  \"cherté\". ",null,null,null,"https://drawmyeconomy.com/friedrich-hayek/"]
[24,"Hicks John","1904 Warwick - Brockley 1989","Économiste britannique (Prix Nobel 1972)","Néokeynésianisme","Capital et croissance (1965) - La crise de l'économie keynésienne (1974) - Le temps et le capital (1975)","J","                                                                                                                      Je ne suis pas parti de Keynes: je suis parti de Pareto et de Hayek."]
[25,"Leontief Wassily","1906 Munich - New-York 1999","Économiste américain d'origine russe. (Prix Nobel 1973)","Empirisme","Input-output economics (1966)","J","Le rôle de l'homme en tant que facteur de production le plus important est appelé à diminuer - de la même manière que le rôle des chevaux dans la production agricole a d'abord été diminué puis éliminé par l'introduction de tracteurs. "]
[26,"Fourastié Jean ","1907 Saint-Bénin, Nièvre - Lot, 1990 ","Économiste français","Libéralisme","Grand Espoir du XXe siècle (1949), les Trente Glorieuses ou la Révolution invisible (1979)","V","                                                                                                                           La productivité est la mesure du progrès technique."]
[27,"Kaldor Nicholas","1908 Budapest - 1986 Cambridge","Economiste hongrois","Post-keynésianisme","Economics without equilibrium (1985)","J","                                                                                                                                 Casser l’inflation se fait toujours au détriment de l’emploi.",null,"  "]
[28,"Galbraith John Kenneth","1908 Iona Station, Ontario - Cambridge 2006","Économiste américain","Post-keynésianisme - Institutionnalisme","L'Ère de l'opulence (1958) - Le Nouvel État industriel (1967)","R","                                                                                              La seule fonction de la prévision économique, c’est de rendre l’astrologie respectable. "]
[29,"Friedman Milton","1912 New York - San Francisco 2006","Économiste américain. (Prix Nobel 1976)","Néoclassique - Ecole de Chicago","Capitalisme et liberté (1962) - Inflation et systèmes monétaires (1968)","V","                  L’inflation est comme l’alcoolisme. Lorsqu’un homme se livre à une beuverie, le soir même cela lui fait du bien. Ce n’est que le lendemain qu’il se sent mal. L'inflation est une taxation sans législation.",null,null,null,"https://www.youtube.com/watch?v=8dUyKKbcixw"]
[30,"Samuelson Paul Anthony","1915 Gary, Indiana - Massachusetts 2009","Économiste américain. (Prix Nobel 1970)","Synthèse néoclassique","Économique (1948)","V","                                           Les profits sont le sang vital du système économique, l’élixir magique sur lequel repose tout progrès. Mais le sang d’une personne peut être le cancer pour une autre.",null,null,null,"https://drawmyeconomy.com/paul-samuelson/"]
[31,"Tobin James","1918 Champaing, Illinois - New Haven 2002","Economistre américain (Prix Nobel 1981)","Synthèse néoclassique","A General Equilibrium Approach to Monetary Theory (1969)","J","                           Nous devrions consacrer une bonne partie de notre énergie, de nos passions, de notre intelligence, à trouver des moyens de réduire les inégalités, aussi bien dans chaque pays qu’entre les pays."]
[32,"Klein Lawrence Robert ","1920 Omaha, Nebraska - Gladwyne 2013","Économiste américain. (Prix Nobel 1980)","Néokeynésianisme","Econometric Model Performance (1976)","J"," L'économiste ne peut pas scientifiquement s'attendre à avoir raison plus des deux tiers du temps. Nous fonctionnons tous dans un système de probabilité et d'erreur."]
[33,"Barre Raymond","1924 Saint-Denis, Réunion - Paris 2007","Économiste et homme politique français","Libéralisme","Economie Politique (1959) - La désinflation (1983)","V","                                                                                                                                                  L’économie se venge toujours."]
[34,"Nash John Forbes","1928 Bluefiel, Virginie - New Jersey 2015","Économiste et mathématicien américain (Prix Nobel 1994)","Synthèse néoclassique","Equilibrium Points in N-person Games (1950)","V","                                                               Il n'est pas nécessaire d'être un mathématicien pour avoir une idée des chiffres.  -   La seule chose plus grande que la puissance de l'esprit est le courage du cœur."]
[35,"Sen Amartya","1933 Santiniketan","Économiste et philosophe indien (Prix Nobel 1998)","Economistes du \"Bien-être\"","Un nouveau modèle éco. (2003) - L'économie est une science morale (2004) - Ethique et économie (2012)","J","                                                                                         Nous vivons dans un monde indivis où les riches ne peuvent plus ignorer les pauvres."]
[36,"Lucas Robert Emerson","1937 Yakima, État de Washington","Économiste américain. (Prix Nobel 1995)","Nouvelle économie classique - Chicago","Poverty and Famines (1981) - Development as Freedom (1999) ","V","                    Un élément clé de tous les modèles keynésiens est le compromis entre l'inflation et la production réelle: plus le taux d'inflation est élevé; plus la production est élevée et plus le taux de chômage est bas."]
[37,"Yunus Muhammad","1940 Chittagong, Bangladesh","Entrepreneur et Économiste bangladais (Nobel de la paix 2005)","Économistes du \"Bien-être\"","Muhammad Yunus, Banker to the Poor (,2003)","R","    Les pauvres ne sont pas responsables de leur pauvreté. Ils ne sont ni des incapables ni des fainéants, mais des victimes. C'est la société qui les a faits pauvres. Il faut donner à chacun la possibilité de devenir entrepreneur."]
[38,"Laffer Arthur","1940 Youngstown, Ohio","Économiste américain.","Libéralisme - Ecole de l'offre","Retour à la prospérité (2010) -Eureka!: Comment réparer la Californie (2014)","V","                                                                                                                                                                           Trop d'impôt tue l'impôt."]
[39,"Stiglitz Joseph","1943 Gary","Économistre américain (Prix Nobel 2001)","Néokeynésianisme","La grande désillusion (2002) -  Le triomphe de la cupidité (2010) - Peuple, pouvoir et profits (2019)","J","                                             L'économie n'est pas un jeu à somme nulle. Nous pouvons restructurer la mondialisation au bénéfice de tous.   -   Nulle idée n'a plus de force que la main invisible d'Adam Smith."]
[40,"Piketty Thomas","1971 Clichy","Économiste français (Prix du meilleur jeune économiste)","Sociale-démocratique","Les Hauts Revenus en France au XXe siècle - Le capital au XXIe siècle (2013)","R","                                                                                                                                     La Suisse doit davantage partager ses richesses",null,"\"La machine a jusqu’ici créé, directement ou indirectement, beaucoup plus d’emplois qu’elle n’en a supprimés\""]
[41,"   ","Date et lieu de naissance","    ","Ecole ou mouvement","Un ou deux des ouvrages de référence","J",null,null,"  "]
[42,null,null,null,null,null,null,"                                                                                                                                                                           J'ai dit …"]
[43,null,null,null,null,null,null,"                                                                                                                                                       Merci de m'avoir lu et à bientôt !"]
[]
[]
[]
[]
[]
[null,"Réserve :"]
[null,"Krugman Paul","1953 Long Island","Économistre américain (Prix Nobel 2008)","Néokeynésianisme",null,null,"Prenons le cas de Singapour. […] On dirait un miracle économique. Mais le miracle est moins celui de l’inspiration que celui de la transpiration"]
[]
[null,"Sauvy Alfred","1898  - 1990",null,null,null,null,"La machine a jusqu’ici créé, directement ou indirectement, beaucoup plus d’emplois qu’elle n’en a supprimés.  -  L'économie c'est la science du sordide, non de la pureté."]
[null,"Neumann John von","1903 -1957"]
[]
[]
[]
[]
[]
[]
[]
[]
[]
[]
[]
[]
[]
[]
[]
[]
[]
[]
[]
[]
[]
[]
[]
[]
[]
[]
[]
[]
[]
[]
[]
[]
[]
[]
[]
[]
[]
[]
[]
[]
[]
[]
[]
[]
[]
[]
[0,"Nom :",0]
[1,"Barre Raymond",33]
[2,"Bastiat Frédéric",10]
[3,"Bernstein Eduard",17]
[4,"Colbert Jean-Baptiste",2]
[5,"Fourastié Jean ",26]
[6,"Friedman Milton",29]
[7,"Galbraith John Kenneth",28]
[8,"Gresham Thomas",1]
[9,"Hayek Friedrich (von)",23]
[10,"Hicks John",24]
[11,"Kaldor Nicholas",27]
[12,"Keynes John Maynard",19]
[13,"Klein Lawrence Robert ",32]
[14,"Kondratiev Nikolaï",22]
[15,"Laffer Arthur",38]
[16,"Leontief Wassily",25]
[17,"Lucas Robert Emerson",36]
[18,"Malthus Thomas Robert",6]
[19,"Marshall Alfred",15]
[20,"Marx Karl",13]
[21,"Mill John Stuart",11]
[22,"Monnet Jean",21]
[23,"Nash John Forbes",34]
[24,"Pareto Vilfredo",16]
[25,"Piketty Thomas",40]
[26,"Proudhon Pierre-Joseph",12]
[27,"Quesney François",3]
[28,"Ricardo David",8]
[29,"Rist Charles",18]
[30,"Saint-Simon Henri (de)",5]
[31,"Samuelson Paul Anthony",30]
[32,"Say Jean-Baptiste",7]
[33,"Schumpeter Joseph",20]
[34,"Sen Amartya",35]
[35,"Sismondi Jean-Léonard (de)",9]
[36,"Smith Adam",4]
[37,"Stiglitz Joseph",39]
[38,"Tobin James",31]
[39,"Walras Léon",14]
[40,"Yunus Muhammad",37]
[null,"   ",41]

{"sheet":"Portrait","index":5,"n_rows":45,"n_cols":50,"rows_kept":45,"cut":false,"hidden":true,"merged":[]}
[null,1,2,3,4,5,6,7,8,9,10,11,12,13,14,15,16,17,18,19,20,21,22,23,24,25,26,27,28,29,30,31,32,33,34,35,36,37,38,39,40,43,44,45,46,45,41,42,43,44]
[]
[]
[]
[null,null,null,null,null,null,null,null,null,null,null,null,null,null,null,null,null,null,null,null,null,null,null,null,null,null,null,null,null,null,null,null,null,null,null,null,null,null,null,null,null,"?","?"]
[null,{"$f":"Texte!B4","v":"Gresham Thomas"},{"$f":"Texte!C4","v":"Colbert Jean-Baptiste"},{"$f":"Texte!D4","v":"Quesney François"},{"$f":"Texte!E4","v":"Smith Adam"},{"$f":"Texte!F4","v":"de Saint-Simon Henri"},{"$f":"Texte!G4","v":"Malthus Thomas Robert"},{"$f":"Texte!H4","v":"Say Jean-Baptiste"},{"$f":"Texte!I4","v":"Ricardo David"},{"$f":"Texte!J4","v":"de Sismondi Jean-Léonard"},{"$f":"Texte!K4","v":"Bastiat Frédéric"},{"$f":"Texte!L4","v":"Mill John Stuart"},{"$f":"Texte!M4","v":"Proudhon Pierre-Joseph"},{"$f":"Texte!N4","v":"Marx Karl"},{"$f":"Texte!O4","v":"Walras Léon"},{"$f":"Texte!P4","v":"Marshall Alfred"},{"$f":"Texte!Q4","v":"Pareto Vilfredo"},{"$f":"Texte!R4","v":"Bernstein Eduard"},{"$f":"Texte!S4","v":"Rist Charles"},{"$f":"Texte!T4","v":"Keynes John Maynard"},{"$f":"Texte!U4","v":"Schumpeter Joseph"},{"$f":"Texte!V4","v":"Monnet Jean"},{"$f":"Texte!W4","v":"Kondratiev Nikolaï"},{"$f":"Texte!X4","v":"von Hayek Friedrich"},{"$f":"Texte!Y4","v":"Hicks John"},{"$f":"Texte!Z4","v":"Leontief Wassily"},{"$f":"Texte!AA4","v":"Fourastié Jean "},{"$f":"Texte!AB4","v":"Kaldor Nicholas"},{"$f":"Texte!AC4","v":"Galbraith John Kenneth"},{"$f":"Texte!AD4","v":"Friedman Milton"},{"$f":"Texte!AE4","v":"Samuelson Paul Anthony"},{"$f":"Texte!AF4","v":"Tobin James"},{"$f":"Texte!AG4","v":"Klein Lawrence Robert "},{"$f":"Texte!AH4","v":"Barre Raymond"},{"$f":"Texte!AI4","v":"Nash John Forbes"},{"$f":"Texte!AJ4","v":"Sen Amartya"},{"$f":"Texte!AK4","v":"Lucas Robert Emerson"},{"$f":"Texte!AL4","v":"Yunus Muhammad"},{"$f":"Texte!AM4","v":"Laffer Arthur"},{"$f":"Texte!AN4","v":"Stiglitz Joseph"},{"$f":"Texte!AO4","v":"Piketty Thomas"}]
[]
[null,null,null,null,null,null,null,null,null,null,null,null,null,null,"Valeur utilité"]
[]
[null,"Avec le cholestérol la mauvaise graisse chasse la bonne. Avec la monnaie c'est la même chose !","Plumer l'oie (ou le canard colvert) avec le moins de cris possible.","Pauvres paysans, pauvre royaume. Qu'est-ce ce négatif diagnostique docteur ?","La main invisible, ce mythe à damner. La somme des intérêts individuels amène à l'équilibre général.","Du travail obligatoire pour tous, si mon rêve s'exhausse.","Il est plus facile de les faire que de les nourrir mal tous !","L'offre est le moteur de la demande, la monnaie qu'un intermédiaire, tout le monde le sait !","Le marché du travail doit être ouvert à la concurrence et les pays se spécialiser. Ris car d'autres pensent le contraire !","Le problème ce ne sont pas les nouvelles machines, mais le partage des profits réalisés.","Avec l'État, tout le monde s'efforce de vivre aux dépens de tout le monde, comme en Corse !","Le raisonnement inductif dans la pensée économique des militants associationnistes"," La propriété c'est le vol peu ou prou.","Mettre fin à l'exploitation du travail par le capital. Ceci est ma marque spécifique.","C'est l'utilité qui fait la valeur d'un bien, pas le travail. Le prix assure l'équilibre général O/D.","La valeur par les facteurs de production et l'utilité marginale, voilà comme ça marche à l'École de Cambridge.","Je vais optimiser mes ressources et l'État par retour va augmenter mes impôts.","Il faut adapter le marxisme en berne à la réalité économique.","L'or est la moins mauvaise monnaie, sans risque et Bretten Woods ne veut pas le savoir.","Investissements publics pour le plein-emploi. Personne ne doit rester sur le quai, n'est-ce pas.","L'innovation est le moteur de la croissance, mais la surproduction amène la crise.","Père de l'Europe avec Schuman, Spaak et Gasperi je rêve d'une monnaie unique.","Avec le capitalisme, les phases de croissance (qu'on dramatise en l'estimant à 50 ans) sont suivies de dépressions.","Libre marché et moins d'États pour sauver nos libertés…aïe, aïe, aïe !","Le modèle X \"IS/LM\" détermine la stabilité de l'économie.","Le rôle des personnes est de plus en plus petit comme facteur de production. Les hontes !","Les 30 glorieuses c'est la période après les fours à style macabre.","Le carré magique, il n'y a qu'à le dorloter.","Les entreprises imposent leurs produits aux consommateurs, c'est la filière inversée et galbée.","L'École de Chicago et l'ultralibéralisme par un homme frit.","Les biens faits du commerce international ne sont pas garantis, même avec le SAMU !","Une taxe c'est trop bien pour réduire la spéculation.","Les idées de Keynes mises à jour avec des petits modèles économétriques.","Le frein à la dette publique est mon idée fixe. La barre à droite toute.","Le dilemme du prisonnier et les stratégies coopératives dans les prisons de Nashville.","L'indice de développement humain au service de l'économie du bien-être pour rester zen.","Les agents économiques sont intelligents et rationnels. La politique budgétaire n'est qu'une lucarne qui ne sert à rien.","Du microcrédit pour les pauvres dans son jus.","Trop d'impôt tue l'impôt… la belle affaire !","Selon la notion de salaire d'efficience, la productivité dépend d'un salaire stimulant.","La principale caractéristique du capitalisme c'est de créer des inégalités inquiétantes. Signé Picsous."]
[]
[]
[]
[]
[]
[]
[]
[]
[]
[]
[]
[]
[]
[]
[]
[]
[]
[]
[]
[]
[]
[]
[]
[]
[]
[]
[]
[]
[]
[]
["https://www.lafinancepourtous.com/decryptages/politiques-economiques/theories-economiques/fiches-economistes/"]
[]
["http://www.jutier.net/contenu/economi.htm"]
[]
["https://www.economie.gouv.fr/facileco/adam-smith"]

{"sheet":"Texte","index":6,"n_rows":15,"n_cols":100,"rows_kept":15,"cut":false,"hidden":true,"merged":[]}
[null,1,2,3,4,5,6,7,8,9,10,11,12,13,14,15,16,17,18,19,20,21,22,23,24,25,26,27,28,29,30,31,32,33,34,35,36,37,38,39,40,41,42,43,44,45,46,47,48,49,50,51,52,53,55,56,57,58,59,60,61,62,63,64,65,55,56,57,58,59,60,61,62,63,64,65,66,67,68,69,70,71,72,73,74,75,76,77,78,79,80,81,82,83,84,85,86,87,88,89]
[null,null,null,null,null,null,null,null,null,null,null,null,null,null,null,null,null,null,null,null,null,null,null,null,null,null,null,null,null,null,null,null,null,null,null,null,null,null,null,null,null,null,"                                                                 Sciences économiques",{"$f":"IF(QUIZ!L12=0,\"Score parfait !\",\"… avec  \"&QUIZ!L12&AR5)","v":"Score parfait !"}]
[]
[null,{"$f":"TRANSPOSE(Data!B2:E42)","v":"Gresham Thomas"},"Colbert Jean-Baptiste","Quesney François","Smith Adam","de Saint-Simon Henri","Malthus Thomas Robert","Say Jean-Baptiste","Ricardo David","de Sismondi Jean-Léonard","Bastiat Frédéric","Mill John Stuart","Proudhon Pierre-Joseph","Marx Karl","Walras Léon","Marshall Alfred","Pareto Vilfredo","Bernstein Eduard","Rist Charles","Keynes John Maynard","Schumpeter Joseph","Monnet Jean","Kondratiev Nikolaï","von Hayek Friedrich","Hicks John","Leontief Wassily","Fourastié Jean ","Kaldor Nicholas","Galbraith John Kenneth","Friedman Milton","Samuelson Paul Anthony","Tobin James","Klein Lawrence Robert ","Barre Raymond","Nash John Forbes","Sen Amartya","Lucas Robert Emerson","Yunus Muhammad","Laffer Arthur","Stiglitz Joseph","Piketty Thomas","   ",{"$error":"#N/A"}]
[null,"1519 Londres - 1579","1619 Reims - 1683 Paris","1694 Méré - Versailles 1774 ","1723 Écosse - Édimbourg 1790","1760 Paris - Paris 1854","1766 Surrey - Claverton, 1834","1767 Lyon  - Paris 1832","1772 Londres - Gloucestershire, 1823","1773 Genève  - id. 1842","1801 Bayonne - Rome 1850","1806 Londres - Avignon 1873","1809  Besançon - Paris 1865","1818 Trèves - Londres 1883","1834 Évreux - Clarens, Suisse, 1910","1842 Londres - Cambridge 1924","1848 Paris - Céligny, Suisse 1923","1850 Schöneberg - Berlin 1932","1874 Lausanne - Versailles 1955","1883 Cambridge - Sussex, 1946","1883 Moravie - Taconic,Connecticut 1950","1888 Cognac - Yvelines, 1979 ","1892 Vitchouga - Oblast de Moscou 1938 ","1899 Vienne - Frigourg-en-Brisgau 1992","1904 Warwick - Brockley 1989","1906 Munich - New-York 1999","1907 Saint-Bénin, Nièvre - Lot, 1990 ","1908 Budapest - 1986 Cambridge","1908 Iona Station, Ontario - Cambridge 2006","1912 New York - San Francisco 2006","1915 Gary, Indiana - Massachusetts 2009","1918 Champaing, Illinois - New Haven 2002","1920 Omaha, Nebraska - Gladwyne 2013","1924 Saint-Denis, Réunion - Paris 2007","1928 Bluefiel, Virginie - New Jersey 2015","1933 Santiniketan","1937 Yakima, État de Washington","1940 Chittagong, Bangladesh","1940 Youngstown, Ohio","1943 Gary","1971 Clichy","Date et lieu de naissance",{"$error":"#N/A"},{"$f":"IF(QUIZ!L12<2,\" hésitation!\",\" hésitations !\")","v":" hésitation!"}]
[null,"Commerçant et banquier anglais - Spécialise monétaire","Contrôleur général des finances","Chirurgien puis économiste français","Économiste britannique","Économiste et philosophe français","Économiste britannique","Économiste français","Économiste britannique","Historien et économiste suisse","Philosophe, magistrat et économistre français","Philosophe et économiste britannique","Économiste et philosophe français","Philosophe, économiste et homme politique allemand","Économiste français","Économiste britannique","Économiste et sociologue italien","Philosophe et homme politique allemand","Économiste français","Économiste britannique","Économiste autrichien.","Administrateur et homme politique français","Economiste soviétique","Économiste et philosophe autrichien (Prix Nobel en 1974)","Économiste britannique (Prix Nobel 1972)","Économiste américain d'origine russe. (Prix Nobel 1973)","Économiste français","Economiste hongrois","Économiste américain","Économiste américain. (Prix Nobel 1976)","Économiste américain. (Prix Nobel 1970)","Economistre américain (Prix Nobel 1981)","Économiste américain. (Prix Nobel 1980)","Économiste et homme politique français","Économiste et mathématicien américain (Prix Nobel 1994)","Économiste et philosophe indien (Prix Nobel 1998)","Économiste américain. (Prix Nobel 1995)","Entrepreneur et Économiste bangladais (Nobel de la paix 2005)","Économiste américain.","Économistre américain (Prix Nobel 2001)","Économiste français (Prix du meilleur jeune économiste)","    ",{"$error":"#N/A"}]
[null,"Mercantilisme","Mercantilisme","Physiocratie","Fondateur école classique","Utopistes","Classique","Classique","Classique","Classique","Classique","Utilitarisme - libéralisme","Utopistes","Marxisme","Néoclassique - Ecole de Lausanne","Néoclassique - Ecole anglaise","Néoclassique - Ecole de Lausanne","Marxisme","Néoclassique","Inspirateur du keynésianisme","Néoclassique - Ecole autrichienne","Libre échange","Léninisme","Ecole autrichienne","Néokeynésianisme","Empirisme","Libéralisme","Post-keynésianisme","Post-keynésianisme - Institutionnalisme","Néoclassique - Ecole de Chicago","Synthèse néoclassique","Synthèse néoclassique","Néokeynésianisme","Libéralisme","Synthèse néoclassique","Economistes du \"Bien-être\"","Nouvelle économie classique - Chicago","Économistes du \"Bien-être\"","Libéralisme - Ecole de l'offre","Néokeynésianisme","Sociale-démocratique","Ecole ou mouvement",{"$error":"#N/A"}]
[]
[null,null,"Fondateur de la doctrine économico-politique dite « colbertisme »","Fondateur de l'école des \"Physiocrates\"","Père de l'École classique et de l'économie moderne, Recherches sur la nature et les causes de la richesse des nations","Inspirateur et fondateur du mouvement du saint-simonisme","Essai sur le principe de population, démographie","Économie de l'offre, loi de Say","Théorie de la valeur, avantage comparatif, Des principes de l'économie politique et de l'impôt","Le « Réformiste hétérodoxe » : déséquilibres et crises de surproduction, le « garantisme social » : précurseur de la social-démocratie moderne","Sophismes économiques","Utilitarisme, un des économistes les plus influents du milieu du xixe siècle","Penseur libertaire : Théorie de l'exploitation, anti-propriété et anti-collectivisme, partisan du crédit gratuit, du mutualisme et du fédéralisme.","Fondateur de l'école marxiste, Le Capital","Cofondateur du marginalisme, équilibre général walrasien, tatonnement, commissaire-priseur walrasien","Principale figure de l'École néoclassique, valeur, Principes d'économie politique","École de Lausanne, optimum de Pareto, principe de Pareto",null,null,"Fondateur de la macroéconomie et du keynésianisme","Théorie de la croissance, rôle de l'entrepreneur et destruction créatrice, le « temps long » à l'œuvre dans l'évolution économique","Père de la planification à la française, un des inspirateurs actifs de l'Union Européenne","Cycle Kondratieff","Un des plus grands Autrichiens, cycle économique, ordre spontané, Nobel 1974","Fondateur du néo-keynésianisme avec le Modèle IS/LM, Nobel 1972","Analyse entrée-sortie, paradoxe de Leontief, Nobel 1973","Économiste du progrès technique et de la civilisation tertiaire (le Grand Espoir du XXe Siècle / Machinisme et Bien-être / les 40.000 heures[réf. souhaitée])","Carré magique","Keynésien et institutionnaliste, un des économistes les plus populaires du xxe siècle","Fondateur du monétarisme, Nobel 1976, JBC 1951","Synthèse néoclassique, Modèle Heckscher-Ohlin-Samuelson, théorème Stolper-Samuelson, Economics : an introductory analysis, JBC 1947, Nobel 1970","Analyse des marchés financiers (ratio q de Tobin), taxe Tobin, Nobel 1981, JBC 1955","Modèles macroéconomiques de pays, Nobel 1980",null,"Théorie des jeux, équilibre de Nash, Nobel 1994","Économie du bien-être, pauvreté, indicateur de développement humain, Nobel 1998","Nouvelle économie classique, anticipations rationnelles, Nobel 1995"]
[]
[]
[]
["https://fr.wikipedia.org/wiki/Liste_d%27%C3%A9conomistes"]
["http://www.burkinapmepmi.com/spip.php?article11744",null,null,null,null,null,null,null,null,null,null,null,null,null,null,null,null,null,null," "]
[null,null,null,null,null,null,null,null,null,"    "]